bitfinex-derivatives/quotes_SOLF0:USTF0_20241212
["timestamp","ask_amount","ask_price","bid_price","bid_amount"]
[1733984344380,2.1726,230.03,229.99,5.27886856]
[1733984344779,2.16,230.03,229.91,16.38639214]
[1733984344979,2.16,230.03,229.92,2.7528]
[1733984346178,2.16,230.03,229.97,5.23857275]
[1733984346586,2.1727,230.02,229.97,5.23857275]
[1733984347384,2.16,230.03,229.99,2.173]
[1733984347582,2.1724,230.05,229.99,2.173]
[1733984347782,4.3324,230.05,229.99,2.173]
[1733984348380,2.16,230.05,229.97,5.23857275]
[1733984349180,2.1728,230.01,229.97,5.23857275]
[1733984349477,2.1728,230.01,229.95,2.1733]
[1733984349787,4.3329,230.0,229.95,2.1733]
[1733984349982,4.3329,230.0,229.93,2.1735]
[1733984349983,2.16,230.0,229.93,2.1735]
[1733984350195,2.16,230.0,229.87,2.16]
[1733984350196,12.88109214,229.98,229.85,12.88109214]
[1733984350390,2.1735,229.94,229.85,15.67149214]
[1733984350684,2.16,229.94,229.88,2.174]
[1733984350887,2.1736,229.93,229.85,2.7904]
[1733984351089,2.16,229.94,229.85,4.9647]
[1733984352091,2.1736,229.93,229.86,7.30598714]
[1733984353284,2.16,229.94,229.86,5.13178714]
[1733984354690,2.16,229.94,229.87,2.174]
[1733984354881,2.16,229.94,229.86,5.13178714]
[1733984355990,2.1739,229.9,229.85,1.4279]
[1733984356186,2.16,229.89,229.85,1.4279]
[1733984356385,2.16,229.88,229.79,1.342]
[1733984356590,12.88109214,229.92,229.79,1.342]
[1733984356591,2.1742,229.86,229.79,1.342]
[1733984356886,2.1742,229.86,229.78,2.1749]
[1733984356887,2.16,229.85,229.75,2.6579]
[1733984357087,2.16,229.84,229.75,3.9909]
[1733984357289,2.16,229.83,229.75,3.9909]
[1733984357492,2.16,229.82,229.75,3.9909]
[1733984357686,2.16,229.81,229.75,3.9909]
[1733984358584,2.16,229.81,229.77,2.175]
[1733984358990,2.16,229.81,229.75,3.9909]
[1733984359295,2.16,229.85,229.8,2.1747]
[1733984359483,2.16,229.85,229.79,5.17735257]
[1733984360092,2.16,229.89,229.84,2.1743]
[1733984360685,2.16,229.89,229.8,12.88109214]
[1733984360686,2.16,229.89,229.85,2.1743]
[1733984361791,2.16,229.89,229.79,5.17735257]
[1733984361993,15.04109214,229.89,229.79,5.17735257]
[1733984362391,15.04109214,229.89,229.75,6.1509]
[1733984362392,2.1743,229.85,229.75,6.1509]
[1733984362591,2.16,229.84,229.75,3.9909]
[1733984363392,2.16,229.84,229.79,5.34122083]
[1733984364897,2.16,229.84,229.77,2.175]
[1733984364898,4.3345,229.84,229.77,2.175]
[1733984365595,2.1745,229.83,229.76,2.1751]
[1733984366085,2.16,229.84,229.75,3.9909]
[1733984366086,2.1747,229.81,229.75,3.9909]
[1733984366293,12.88109214,229.83,229.75,2.6661]
[1733984366690,12.88109214,229.83,229.75,7.90805759]
[1733984366895,2.1748,229.8,229.75,7.90805759]
[1733984367100,2.16,229.79,229.75,7.90805759]
[1733984367898,2.16,229.79,229.75,10.08325759]
[1733984369199,2.16,229.79,229.75,7.90805759]
[1733984369399,2.16,229.79,229.77,2.1751]
[1733984370600,2.16,229.79,229.75,7.90805759]
[1733984370799,2.16,229.79,229.75,10.08325759]
[1733984370995,2.16,229.8,229.75,10.08325759]
[1733984372098,2.16,229.8,229.75,7.90805759]
[1733984372300,2.16,229.8,229.73,2.1753]
[1733984372301,4.3348,229.8,229.73,2.1753]
[1733984374600,4.3348,229.8,229.74,2.1753]
[1733984375004,4.3348,229.8,229.71,1.3844]
[1733984375005,2.16,229.8,229.71,1.3844]
[1733984375200,2.16,229.8,229.74,5.3325233]
[1733984376298,2.16,229.8,229.75,2.1752]
[1733984376502,2.16,229.8,229.74,5.3325233]
[1733984376702,12.88109214,229.86,229.74,5.3325233]
[1733984376903,2.16,229.85,229.74,5.3325233]
[1733984377599,2.1744,229.84,229.74,5.3325233]
[1733984377804,12.88109214,229.86,229.74,5.3325233]
[1733984378003,2.16,229.85,229.74,5.3325233]
[1733984378704,2.1745,229.83,229.77,2.1751]
[1733984379798,2.16,229.85,229.74,5.3325233]
[1733984380000,12.88109214,229.83,229.74,7.5078233]
[1733984380200,12.88109214,229.83,229.71,1.3844]
[1733984380396,2.1751,229.77,229.71,1.3844]
[1733984380599,12.88109214,229.8,229.71,1.3844]
[1733984380600,2.16,229.76,229.71,1.3844]
[1733984381000,2.16,229.76,229.71,6.71913896]
[1733984381418,2.16,229.76,229.72,2.1755]
[1733984382305,2.16,229.76,229.71,8.89473896]
[1733984382802,12.88109214,229.77,229.69,2.8022]
[1733984383004,2.16,229.76,229.69,2.8022]
[1733984383401,2.1755,229.73,229.69,2.8022]
[1733984384607,2.1755,229.73,229.67,2.176]
[1733984385106,2.1755,229.73,229.66,2.1761]
[1733984385305,2.1755,229.73,229.61,2.6731]
[1733984385906,2.1754,229.74,229.61,2.6731]
[1733984386207,2.1754,229.74,229.67,5.19020878]
[1733984386907,2.16,229.73,229.67,5.19020878]
[1733984387713,2.16,229.73,229.68,2.1759]
[1733984389815,12.88109214,229.77,229.71,2.1756]
[1733984390013,2.16,229.76,229.67,5.19020878]
[1733984390214,2.16,229.76,229.68,1.3169]
[1733984390711,2.16,229.75,229.71,2.1756]
[1733984390907,2.16,229.74,229.68,1.3169]
[1733984391108,15.05589214,229.8,229.68,1.3169]
[1733984391316,2.16,229.79,229.68,1.3169]
[1733984391908,2.175,229.78,229.68,1.3169]
[1733984392111,2.16,229.79,229.68,1.3169]
[1733984393011,12.88109214,229.77,229.68,1.3169]
[1733984393609,2.1752,229.76,229.7,2.1757]
[1733984393808,12.88109214,229.77,229.68,1.3169]
[1733984394415,12.88109214,229.71,229.67,2.176]
[1733984394713,2.16,229.7,229.58,28.36224758]
[1733984394916,2.16,229.7,229.65,2.1762]
[1733984395618,2.16,229.7,229.66,2.1761]
[1733984396015,2.16,229.7,229.6,24.15014758]
[1733984396319,45.61356284,229.81,229.65,5.24812595]
[1733984396507,2.16,229.8,229.66,1.377]
[1733984396913,2.16,229.8,229.67,2.8269]
[1733984397315,2.1749,229.79,229.72,2.1755]
[1733984397717,2.16,229.8,229.67,2.8269]
[1733984398019,4.3348,229.8,229.73,2.1753]
[1733984398219,2.16,229.8,229.67,2.8269]
[1733984399522,12.88109214,229.78,229.67,2.8269]
[1733984399922,2.1752,229.76,229.68,2.1758]
[1733984400122,12.88109214,229.78,229.67,2.8269]
[1733984400123,2.16,229.75,229.67,2.8269]
[1733984400318,15.04109214,229.75,229.67,2.8269]
[1733984400822,2.1754,229.74,229.67,5.0029]
[1733984401014,2.1754,229.74,229.67,2.8269]
[1733984401213,2.1754,229.74,229.69,2.1758]
[1733984401627,2.1754,229.74,229.66,6.04456375]
[1733984401820,2.1754,229.74,229.67,2.1759]
[1733984403121,2.1754,229.74,229.68,2.1759]
[1733984403326,15.04109214,229.75,229.66,6.04456375]
[1733984403823,15.04109214,229.75,229.66,8.22056375]
[1733984404326,2.1756,229.71,229.66,8.22056375]
[1733984404528,2.16,229.7,229.66,6.04456375]
[1733984404931,2.1759,229.68,229.66,6.04456375]
[1733984405230,2.16,229.7,229.66,6.04456375]
[1733984405231,12.88109214,229.69,229.66,6.04456375]
[1733984406729,2.176,229.67,229.66,6.04456375]
[1733984407124,2.176,229.67,229.65,18.13369126]
[1733984407324,12.88109214,229.66,229.6,118.04045676]
[1733984407527,12.88109214,229.61,229.55,177.17535757]
[1733984407732,2.1768,229.59,229.55,177.17535757]
[1733984407924,12.88109214,229.58,229.55,177.17535757]
[1733984409426,12.88109214,229.58,229.5,276.51905953]
[1733984409427,25.76218428,229.58,229.5,276.51905953]
[1733984409628,12.88109214,229.54,229.28,12.88109214]
[1733984409832,12.88109214,229.54,229.19,28.07109214]
[1733984409833,12.88109214,229.45,229.29,0.80078032]
[1733984410131,35.9886794,229.44,229.36,5.1576866]
[1733984410325,2.16,229.43,229.36,5.1576866]
[1733984410525,33.8286794,229.42,229.3,1.74366188]
[1733984410731,175.26399186,229.33,229.2,13.03]
[1733984410932,175.26399186,229.33,229.31,12.88109214]
[1733984411332,235.84532248,229.36,229.34,2.1791]
[1733984411929,2.1781,229.46,229.32,5.22158153]
[1733984412130,12.88109214,229.48,229.32,5.22158153]
[1733984412425,2.16,229.47,229.37,12.88109214]
[1733984412632,2.16,229.46,229.37,12.88109214]
[1733984413133,2.16,229.46,229.4,2.1785]
[1733984413534,2.1775,229.52,229.37,12.88109214]
[1733984413732,4.3376,229.51,229.41,2.1784]
[1733984413932,4.3376,229.51,229.37,12.88109214]
[1733984413933,2.16,229.51,229.37,12.88109214]
[1733984414234,2.16,229.51,229.34,2.16]
[1733984414235,2.16,229.5,229.4,12.88109214]
[1733984415231,175.26190418,229.57,229.43,12.88109214]
[1733984415431,175.26190418,229.59,229.43,12.88109214]
[1733984415634,2.16,229.58,229.44,4.1778]
[1733984415841,12.88109214,229.57,229.44,4.1778]
[1733984416034,40.43093699,229.56,229.44,4.1778]
[1733984416426,2.1774,229.52,229.42,2.1783]
[1733984416634,2.16,229.51,229.42,2.1783]
[1733984416833,2.16,229.51,229.43,2.1782]
[1733984417234,2.1774,229.52,229.43,2.1782]
[1733984417431,2.16,229.51,229.43,2.1782]
[1733984418035,2.16,229.51,229.44,2.1782]
[1733984418433,192.26709632,229.57,229.48,2.1778]
[1733984418641,42.34985943,229.56,229.44,12.88109214]
[1733984418944,2.16,229.55,229.44,12.88109214]
[1733984419436,2.16,229.55,229.45,5.2109395]
[1733984420536,2.16,229.55,229.49,2.1777]
[1733984420840,2.16,229.55,229.47,12.88109214]
[1733984421042,2.16,229.55,229.51,2.1775]
[1733984423835,2.16,229.57,229.52,2.1774]
[1733984424040,2.16,229.57,229.48,17.07589214]
[1733984425146,12.88109214,229.63,229.48,17.07589214]
[1733984425347,2.16,229.62,229.48,17.07589214]
[1733984426437,4.3365,229.62,229.53,2.1773]
[1733984426637,2.16,229.62,229.53,2.1773]
[1733984426842,2.16,229.61,229.48,17.07589214]
[1733984427043,2.16,229.61,229.51,12.88109214]
[1733984427242,12.88109214,229.66,229.51,12.88109214]
[1733984427543,12.88109214,229.66,229.49,2.16]
[1733984427544,188.14299632,229.69,229.54,12.88109214]
[1733984427840,37.36713923,229.68,229.54,12.88109214]
[1733984428147,2.16,229.67,229.54,15.04109214]
[1733984428643,2.16,229.66,229.57,12.88109214]
[1733984428946,2.1758,229.7,229.61,2.1765]
[1733984429147,2.16,229.69,229.6,12.88109214]
[1733984429844,37.43352055,229.75,229.6,12.88109214]
[1733984430147,2.16,229.74,229.6,12.88109214]
[1733984430348,4.3354,229.74,229.67,2.176]
[1733984430550,2.16,229.73,229.63,12.88109214]
[1733984430948,2.16,229.73,229.69,2.1758]
[1733984431149,2.16,229.73,229.63,12.88109214]
[1733984431542,2.16,229.73,229.68,2.1759]
[1733984433450,2.16,229.73,229.63,12.88109214]
[1733984433755,2.16,229.73,229.68,2.1759]
[1733984434150,2.16,229.75,229.69,2.1758]
[1733984434357,2.16,229.75,229.66,12.88109214]
[1733984434550,14.52484214,229.82,229.69,12.88109214]
[1733984434551,13.19504214,229.82,229.69,12.88109214]
[1733984434752,13.19504214,229.82,229.72,12.88109214]
[1733984434753,2.47395,229.82,229.72,12.88109214]
[1733984435451,0.31395,229.82,229.72,12.88109214]
[1733984435850,0.31395,229.82,229.77,2.175]
[1733984436053,0.31395,229.82,229.75,12.88109214]
[1733984436258,0.31395,229.82,229.78,12.88109214]
[1733984436857,15.64269214,229.93,229.78,12.88109214]
[1733984437058,2.16,229.92,229.78,12.88109214]
[1733984437257,2.16,229.91,229.78,12.88109214]
[1733984437457,2.16,229.91,229.83,2.1744]
[1733984437653,14.25059214,229.96,229.83,2.1744]
[1733984437857,12.88109214,229.96,229.83,2.1744]
[1733984438059,2.16,229.95,229.83,2.1744]
[1733984438552,2.16,229.95,229.82,2.7893]
[1733984438755,2.16,229.95,229.84,12.88109214]
[1733984439151,2.16,229.95,229.85,2.16]
[1733984439654,2.16,229.95,229.89,2.1739]
[1733984440055,0.26369,229.94,229.86,1.4112]
[1733984440257,0.26369,229.94,229.83,2.1745]
[1733984440852,2.1737,229.92,229.84,2.1744]
[1733984441159,0.26369,229.94,229.84,12.88109214]
[1733984441773,0.26369,229.94,229.86,5.31223456]
[1733984442458,0.26369,229.94,229.87,12.88109214]
[1733984442657,0.26369,229.94,229.86,7.47223456]
[1733984443455,0.26369,229.94,229.86,5.31223456]
[1733984444857,2.1736,229.93,229.86,5.31223456]
[1733984446968,2.1736,229.93,229.86,7.48643456]
[1733984447268,2.43719,229.94,229.86,7.48643456]
[1733984447466,0.26369,229.94,229.86,5.31223456]
[1733984447662,0.26369,229.94,229.82,6.375]
[1733984447864,12.88109214,229.93,229.78,12.88109214]
[1733984448464,12.88109214,229.93,229.79,2.1749]
[1733984448663,12.88109214,229.93,229.78,12.88109214]
[1733984449069,4.42789,229.94,229.81,18.09056438]
[1733984449070,2.1739,229.9,229.81,18.09056438]
[1733984449263,2.16,229.89,229.81,18.09056438]
[1733984450560,4.3339,229.89,229.82,2.1745]
[1733984450764,4.3339,229.89,229.81,18.09056438]
[1733984450765,2.16,229.89,229.81,18.09056438]
[1733984451160,2.16,229.89,229.83,2.1745]
[1733984451367,2.16,229.93,229.84,12.88109214]
[1733984451862,0.26369,229.94,229.84,12.88109214]
[1733984452067,2.16,229.93,229.84,12.88109214]
[1733984452264,2.16,229.93,229.82,4.1146]
[1733984452960,2.16,229.93,229.84,12.88109214]
[1733984453568,2.16,229.93,229.82,4.1146]
[1733984454266,2.16,229.93,229.82,2.7967]
[1733984455167,2.1742,229.86,229.81,5.20947224]
[1733984455470,2.16,229.88,229.81,5.20947224]
[1733984455668,2.16,229.87,229.82,2.1746]
[1733984455968,2.16,229.87,229.81,5.20947224]
[1733984455969,2.16,229.87,229.81,18.09056438]
[1733984457868,2.16,229.87,229.83,2.1744]
[1733984458069,2.16,229.87,229.81,18.09056438]
[1733984458766,2.16,229.87,229.81,20.26516438]
[1733984458972,2.16,229.87,229.81,18.09056438]
[1733984459472,2.16,229.87,229.81,12.88109214]
[1733984460070,2.16,229.87,229.86,2.1742]
[1733984460267,2.16,229.92,229.86,2.1742]
[1733984460771,2.16,229.92,229.84,12.88109214]
[1733984460972,2.16,229.92,229.84,15.05539214]
[1733984461568,2.16,229.92,229.85,2.1743]
[1733984462370,2.16,229.93,229.87,2.1741]
[1733984462772,12.88109214,229.99,229.84,12.88109214]
[1733984462975,2.1734,229.96,229.89,2.1739]
[1733984463277,2.16,229.97,229.9,12.88109214]
[1733984464370,2.16,229.97,229.91,2.1737]
[1733984464570,2.16,229.97,229.9,12.88109214]
[1733984465072,0.22937,229.99,229.9,12.88109214]
[1733984465277,4.56237,229.99,229.9,12.88109214]
[1733984466683,0.22937,229.99,229.9,12.88109214]
[1733984467583,0.22937,229.99,229.95,2.1733]
[1733984469087,0.22937,229.99,229.96,12.88109214]
[1733984469290,0.22937,229.99,229.98,2.1731]
[1733984469586,0.22937,229.99,229.96,12.88109214]
[1733984469982,0.22937,229.99,229.94,1.3181]
[1733984471293,0.22937,229.99,229.9,12.88109214]
[1733984471991,0.22937,229.99,229.94,5.26899763]
[1733984472585,2.40237,229.99,229.94,5.26899763]
[1733984472789,0.22937,229.99,229.94,5.26899763]
[1733984473689,0.22937,229.99,229.96,12.88109214]
[1733984474191,0.22937,229.99,229.95,1.3406]
[1733984474496,0.22937,229.99,229.95,3.5139]
[1733984474789,0.22937,229.99,229.94,5.26899763]
[1733984475687,2.40237,229.99,229.94,5.26899763]
[1733984476796,4.56237,229.99,229.94,5.26899763]
[1733984477897,2.38937,229.99,229.94,7.44239763]
[1733984478109,2.38937,229.99,229.94,5.26899763]
[1733984478489,2.38937,229.99,229.94,7.44239763]
[1733984479096,2.38937,229.99,229.93,12.88109214]
[1733984479399,2.1732,229.97,229.92,2.1736]
[1733984479700,2.1732,229.97,229.9,12.88109214]
[1733984480493,2.38937,229.99,229.92,2.1736]
[1733984480800,2.1731,229.98,229.92,2.1736]
[1733984480999,2.38937,229.99,229.92,2.1736]
[1733984481301,4.56247,229.99,229.92,2.1736]
[1733984481701,4.56247,229.99,229.93,2.1735]
[1733984482397,2.38937,229.99,229.93,2.1735]
[1733984482703,2.1731,229.98,229.93,2.1735]
[1733984483403,2.38937,229.99,229.9,12.88109214]
[1733984484006,2.38937,229.99,229.95,2.1734]
[1733984484405,0.22937,229.99,229.98,2.1731]
[1733984484700,2.16,230.03,229.98,2.1731]
[1733984485606,2.1726,230.04,229.98,2.1731]
[1733984485800,4.3326,230.04,229.96,12.88109214]
[1733984486006,4.3326,230.04,229.99,2.173]
[1733984487305,2.1726,230.03,229.96,12.88109214]
[1733984488204,2.16,230.04,229.96,2.1732]
[1733984488409,2.16,230.04,229.9,12.88109214]
[1733984489108,2.1729,230.0,229.91,2.1737]
[1733984489410,2.16,229.99,229.9,12.88109214]
[1733984489610,2.16,229.98,229.9,12.88109214]
[1733984489909,2.16,229.97,229.9,12.88109214]
[1733984490110,4.3332,229.97,229.9,12.88109214]
[1733984490509,2.16,229.97,229.88,2.7]
[1733984491412,2.1736,229.92,229.88,2.7]
[1733984493109,2.1737,229.91,229.88,2.7]
[1733984493304,2.16,229.97,229.84,14.25259214]
[1733984493816,2.1735,229.94,229.84,16.42689214]
[1733984494010,2.16,229.97,229.84,16.42689214]
[1733984494206,2.16,229.97,229.84,14.25259214]
[1733984494803,2.16,229.97,229.87,12.88109214]
[1733984495705,2.16,229.97,229.9,12.88109214]
[1733984496608,2.7273,230.07,229.9,12.88109214]
[1733984496609,2.16,229.99,229.9,12.88109214]
[1733984496914,2.7273,230.07,229.93,12.88109214]
[1733984497113,2.1728,230.01,229.96,2.1732]
[1733984497314,4.3328,230.01,229.96,2.1732]
[1733984497711,2.16,230.01,229.96,2.1732]
[1733984499418,2.16,230.01,229.97,2.1732]
[1733984500415,2.16,230.01,229.96,12.88109214]
[1733984500608,2.16,230.01,229.98,2.1731]
[1733984501411,2.16,230.01,229.96,12.88109214]
[1733984501716,4.3325,230.05,229.96,12.88109214]
[1733984501915,4.3325,230.05,229.99,2.173]
[1733984502211,12.88109214,230.11,229.96,12.88109214]
[1733984502415,2.16,230.1,229.99,12.88109214]
[1733984502606,2.16,230.09,229.99,12.88109214]
[1733984502807,2.16,230.08,229.99,12.88109214]
[1733984503311,2.16,230.07,229.99,12.88109214]
[1733984505416,4.3323,230.07,230.0,2.1729]
[1733984505713,4.3323,230.07,229.99,12.88109214]
[1733984506111,2.1724,230.05,229.99,12.88109214]
[1733984506615,2.1724,230.05,229.99,15.05409214]
[1733984507617,2.16,230.07,230.02,2.1726]
[1733984508117,4.3321,230.09,230.03,2.1726]
[1733984508325,2.16,230.1,230.02,12.88109214]
[1733984508822,0.15483,230.13,230.02,12.88109214]
[1733984509023,2.16,230.12,230.05,12.88109214]
[1733984509319,2.1718,230.12,230.08,8.22824014]
[1733984509522,4.3318,230.12,230.08,8.22824014]
[1733984510122,2.1718,230.12,230.08,8.22824014]
[1733984510418,4.3318,230.12,230.08,8.22824014]
[1733984510621,2.1719,230.11,230.08,8.22824014]
[1733984510825,10.38824014,230.12,230.04,8.22824014]
[1733984511217,2.16,230.12,230.0,15.7094487]
[1733984511917,2.1723,230.06,230.01,2.1727]
[1733984512120,2.16,230.05,229.96,5.23029528]
[1733984512319,2.16,230.04,229.96,5.23029528]
[1733984512622,2.16,230.03,229.96,5.23029528]
[1733984512923,2.1729,230.0,229.96,5.23029528]
[1733984513518,2.16,230.02,229.96,5.23029528]
[1733984514724,2.16,230.02,229.97,2.1731]
[1733984515615,2.16,230.02,229.98,2.1731]
[1733984515816,4.3327,230.02,229.96,5.23029528]
[1733984516022,2.16,230.02,229.96,5.23029528]
[1733984516219,12.8619487,230.09,229.96,5.23029528]
[1733984516424,2.16,230.08,229.96,5.23029528]
[1733984517726,2.1726,230.04,229.97,2.1731]
[1733984517921,2.1726,230.04,229.96,5.23029528]
[1733984518121,4.3326,230.04,229.96,5.23029528]
[1733984519627,4.3326,230.04,229.98,2.1731]
[1733984519926,1.401,230.12,230.0,12.8619487]
[1733984520125,2.16,230.11,230.0,12.8619487]
[1733984521624,2.1721,230.09,230.03,2.1726]
[1733984522224,2.1721,230.09,230.03,15.0345487]
[1733984522426,2.1721,230.09,230.04,2.1725]
[1733984522625,2.1719,230.1,230.04,2.1725]
[1733984524327,2.1719,230.1,230.05,2.1724]
[1733984524521,2.1716,230.14,230.06,12.8619487]
[1733984524728,2.16,230.12,230.06,12.8619487]
[1733984525127,1.3872,230.18,230.06,12.8619487]
[1733984525426,2.16,230.14,230.06,12.8619487]
[1733984525626,2.7994,230.25,230.09,12.8619487]
[1733984525627,2.16,230.15,230.09,12.8619487]
[1733984526926,2.16,230.15,230.09,15.0338487]
[1733984527122,2.16,230.15,230.09,12.8619487]
[1733984527325,14.3108487,230.24,230.09,12.8619487]
[1733984527531,2.16,230.18,230.09,12.8619487]
[1733984528128,2.1714,230.16,230.1,5.18222563]
[1733984528329,2.16,230.18,230.1,5.18222563]
[1733984529730,2.1715,230.15,230.1,5.18222563]
[1733984531734,2.1718,230.12,230.06,2.1723]
[1733984531930,2.16,230.13,229.85,63.14074324]
[1733984532133,2.1722,230.08,230.03,5.22169665]
[1733984532635,2.16,230.09,230.03,5.22169665]
[1733984532934,2.16,230.09,230.03,18.08364535]
[1733984533731,2.16,230.09,230.05,2.1724]
[1733984534434,2.16,230.09,230.03,20.25614535]
[1733984535036,2.16,230.09,230.03,18.08364535]
[1733984535235,2.16,230.09,230.04,2.1725]
[1733984535433,2.1724,230.06,229.97,12.8619487]
[1733984535637,2.16,230.09,229.97,12.8619487]
[1733984535938,2.16,230.09,229.99,5.11674468]
[1733984536637,2.16,230.09,230.0,12.8619487]
[1733984537540,2.16,230.09,230.04,2.1725]
[1733984538933,2.1719,230.11,230.05,2.1724]
[1733984540035,2.16,230.12,230.03,12.8619487]
[1733984540232,2.16,230.12,230.06,12.8619487]
[1733984541441,2.16,230.12,230.06,15.0341487]
[1733984541640,2.16,230.12,230.04,5.2755]
[1733984542839,2.1722,230.08,230.04,3.2277]
[1733984543143,2.1722,230.08,230.02,12.8619487]
[1733984543738,2.1722,230.08,229.99,17.97869338]
[1733984544040,2.1722,230.08,230.02,2.1727]
[1733984546336,2.16,230.11,229.99,8.21064468]
[1733984546562,12.8619487,230.1,229.95,12.8619487]
[1733984546739,14.8800487,230.1,229.95,12.8619487]
[1733984546940,2.0181,230.1,229.95,12.8619487]
[1733984547742,2.1726,230.04,229.98,5.14125416]
[1733984547944,4.3326,230.04,229.98,5.14125416]
[1733984549244,12.8619487,230.16,230.01,12.8619487]
[1733984549441,2.0,230.36,230.01,12.8619487]
[1733984549442,2.16,230.15,230.01,12.8619487]
[1733984549646,2.16,230.14,230.01,12.8619487]
[1733984549847,2.1718,230.12,230.01,12.8619487]
[1733984551650,2.16,230.14,230.01,12.8619487]
[1733984551845,4.3316,230.14,230.01,12.8619487]
[1733984552451,2.1718,230.12,230.01,12.8619487]
[1733984552847,2.1004,230.18,230.04,12.8619487]
[1733984553054,2.16,230.14,230.07,12.8619487]
[1733984553251,2.16,230.15,230.09,2.172]
[1733984553552,2.16,230.16,230.09,2.172]
[1733984553852,2.16,230.16,230.1,2.1719]
[1733984554664,2.1713,230.17,230.1,2.1719]
[1733984554959,4.3313,230.17,230.07,12.8619487]
[1733984555160,4.3313,230.17,230.11,2.1718]
[1733984555358,4.3313,230.17,230.07,12.8619487]
[1733984556657,4.3313,230.17,230.11,2.1718]
[1733984556857,4.3313,230.17,230.07,12.8619487]
[1733984557155,5.4248,230.25,230.1,12.8619487]
[1733984557361,2.16,230.24,230.11,3.1651]
[1733984557561,2.16,230.24,230.11,5.2533]
[1733984557760,5.4248,230.25,230.11,5.2533]
[1733984558056,2.1709,230.21,230.11,5.2533]
[1733984558264,2.16,230.2,230.11,5.2533]
[1733984558959,2.16,230.21,230.11,5.2533]
[1733984559559,2.16,230.21,230.16,2.1714]
[1733984560262,2.16,230.23,230.13,12.8619487]
[1733984560565,2.16,230.25,230.13,15.0219487]
[1733984560755,2.1708,230.22,230.13,15.0219487]
[1733984560960,2.16,230.25,230.13,15.0219487]
[1733984562260,2.1709,230.21,230.16,2.1714]
[1733984562854,2.1708,230.22,230.16,2.1714]
[1733984564057,2.1707,230.24,230.17,2.1712]
[1733984564258,2.16,230.23,230.16,12.8619487]
[1733984564560,2.16,230.25,230.16,12.8619487]
[1733984564762,45.2,230.32,230.16,12.8619487]
[1733984565162,45.2,230.32,230.19,2.171]
[1733984565163,2.1705,230.25,230.19,2.171]
[1733984566556,2.1706,230.24,230.19,2.171]
[1733984567663,2.16,230.26,230.11,5.2533]
[1733984567966,2.16,230.26,230.12,12.8619487]
[1733984569659,2.1712,230.19,230.12,15.0337487]
[1733984569865,2.16,230.2,230.12,15.0337487]
[1733984571663,2.1712,230.18,230.12,15.0337487]
[1733984572758,2.1712,230.18,230.12,12.8619487]
[1733984573162,2.16,230.2,230.12,12.8619487]
[1733984573362,2.1713,230.17,230.12,12.8619487]
[1733984573568,2.16,230.2,230.12,12.8619487]
[1733984574568,2.1712,230.18,230.12,15.0336487]
[1733984574764,2.16,230.2,230.11,5.2533]
[1733984575068,2.16,230.2,230.1,5.19420103]
[1733984576067,2.16,230.2,230.08,2.1721]
[1733984576466,2.1719,230.11,230.06,15.0342487]
[1733984577470,2.1719,230.11,230.06,2.1723]
[1733984579475,2.1719,230.11,230.03,12.8619487]
[1733984579676,2.1719,230.11,230.04,2.1724]
[1733984579876,2.16,230.14,230.04,2.1724]
[1733984580177,2.172,230.09,230.04,2.1724]
[1733984580475,2.16,230.14,230.02,2.1726]
[1733984580674,2.1721,230.08,230.02,2.1726]
[1733984581577,2.16,230.14,230.0,15.0219487]
[1733984582073,2.16,230.14,230.0,12.8619487]
[1733984582469,2.16,230.13,230.0,12.8619487]
[1733984582676,2.1722,230.08,230.01,2.1728]